bitfinex/quotes_ETHUSD_20241207
["timestamp","ask_amount","ask_price","bid_price","bid_amount"]
[1733577030294,1.86969563,4008.0,4007.9,0.07798125]
[1733577030690,1.8703676,4008.0,4007.9,0.07798125]
[1733577031016,1.0055547,4008.0,4007.9,0.07798125]
[1733577032338,0.1843897,4008.0,4007.9,1.82453125]
[1733577032533,0.1843897,4008.0,4007.9,2.36927901]
[1733577032907,0.079286,4008.0,4007.9,2.36927901]
[1733577033662,0.079286,4008.0,4007.9,3.14426207]
[1733577033836,0.079286,4008.0,4007.9,3.16920829]
[1733577034204,0.079286,4008.0,4007.9,3.14426207]
[1733577035365,0.079286,4008.0,4007.9,3.1692083]
[1733577035654,0.079286,4008.0,4007.9,3.14426207]
[1733577036009,1.04576417,4009.4,4007.9,1.69905701]
[1733577036250,0.7864,4009.5,4008.9,1.74611]
[1733577036416,0.7864,4009.5,4009.0,0.07796431]
[1733577036417,0.10497472,4009.3,4009.0,0.07796431]
[1733577036612,0.7864,4009.5,4009.0,0.07796431]
[1733577036816,0.10497472,4009.2,4009.1,0.07796431]
[1733577037012,0.7864,4009.5,4009.1,0.07796431]
[1733577037207,0.10497472,4009.2,4009.0,1.74607]
[1733577037445,0.7864,4009.5,4009.1,0.07795042]
[1733577037750,0.7864,4009.5,4009.0,1.74607]
[1733577037751,0.7864,4009.5,4009.2,0.07795042]
[1733577038052,0.7864,4009.5,4009.3,0.07795042]
[1733577038261,0.7864,4009.5,4009.4,0.07795042]
[1733577038411,1.64935989,4009.5,4009.4,0.07795042]
[1733577038612,2.0483159,4009.5,4009.4,0.07583342]
[1733577039337,2.0483159,4009.5,4009.0,1.74607]
[1733577039610,0.7864,4009.5,4009.0,1.74607]
[1733577040247,0.7864,4009.5,4008.8,1.85134494]
[1733577040423,0.7864,4009.5,4008.8,0.775]
[1733577040963,0.7864,4009.5,4008.4,2.82264494]
[1733577041145,0.86268073,4009.4,4008.4,2.82264494]
[1733577041314,0.398887,4009.3,4008.4,2.82264494]
[1733577041761,0.398887,4009.3,4008.5,1.74627]
[1733577042859,0.7864,4009.5,4008.9,1.07634494]
[1733577043559,0.7864,4009.5,4008.5,0.8089]
[1733577043718,0.7864,4009.5,4008.5,3.63151494]
[1733577044313,0.7864,4009.5,4008.6,1.74621]
[1733577044516,0.7864,4009.5,4008.7,1.74619]
[1733577045754,1.15536415,4009.5,4008.5,3.63152494]
[1733577047352,1.15536415,4009.5,4008.5,1.88524494]
[1733577047537,0.7864,4009.5,4008.6,1.74623]
[1733577048659,0.10603996,4009.4,4008.6,1.74623]
[1733577050642,0.10603996,4009.4,4008.7,0.07795585]
[1733577050871,0.10603996,4009.4,4008.8,0.07795585]
[1733577051189,0.10603996,4009.4,4008.9,0.07795585]
[1733577051391,0.10603996,4009.4,4009.0,0.07795585]
[1733577051680,0.10603996,4009.4,4009.1,0.07795585]
[1733577051881,0.10603996,4009.4,4009.2,0.07795585]
[1733577052099,0.10603996,4009.4,4008.7,0.07795585]
[1733577052243,0.10603996,4009.4,4008.8,0.07795585]
[1733577052444,0.10603996,4009.4,4008.9,0.07795585]
[1733577052645,0.10603996,4009.4,4009.0,0.07795585]
[1733577052845,0.10603996,4009.4,4009.1,0.07795585]
[1733577053085,0.10603996,4009.4,4009.2,0.07795585]
[1733577053258,0.10603996,4009.4,4009.3,0.07795585]
[1733577058726,0.10603996,4009.4,4009.3,1.07629685]
[1733577062201,0.36986096,4009.4,4009.3,1.07629685]
[1733577062598,1.14906096,4009.4,4009.3,0.07795585]
[1733577063014,2.01121386,4009.4,4009.3,0.07795585]
[1733577063583,6.01121386,4009.4,4009.3,0.07795585]
[1733577063788,7.30443974,4009.4,4009.3,0.07795585]
[1733577064030,9.05032974,4009.4,4009.3,0.07795585]
[1733577064393,10.09609391,4009.4,4009.3,0.07795585]
[1733577065212,12.05032974,4009.4,4009.3,0.07795585]
[1733577065414,12.05032974,4009.4,4008.8,0.998477]
[1733577065415,12.83961501,4009.4,4008.8,0.998477]
[1733577065670,12.83961501,4009.4,4007.8,2.51169]
[1733577065671,2.52529,4009.0,4008.9,0.0779663]
[1733577065962,3.3874429,4009.0,4008.9,0.0779663]
[1733577066142,3.48999475,4009.0,4008.9,0.0779663]
[1733577066457,5.82660564,4009.0,4008.9,0.0779663]
[1733577066657,9.82660564,4009.0,4008.9,0.0779663]
[1733577066863,11.83600114,4009.0,4007.9,0.998505]
[1733577067014,0.7792,4008.6,4008.0,0.07797501]
[1733577067217,0.7792,4008.6,4008.1,0.07797501]
[1733577067427,0.7792,4008.6,4008.2,0.07797501]
[1733577067631,0.7792,4008.6,4008.3,0.07797501]
[1733577067962,0.10234653,4008.5,4008.4,0.07797501]
[1733577068644,4.7792,4009.0,4008.4,0.07797501]
[1733577068980,0.86307001,4008.9,4008.1,2.51155]
[1733577069273,0.10174759,4008.9,4008.2,0.07796752]
[1733577069756,0.86320358,4008.8,4008.3,0.07796752]
[1733577069958,0.7792,4008.9,4008.4,0.07796752]
[1733577070185,0.7792,4008.9,4007.9,0.998505]
[1733577070186,0.7792,4008.7,4008.5,0.07796752]
[1733577070462,0.57268481,4008.6,4007.9,0.998505]
[1733577070618,0.7792,4008.7,4008.0,0.07797115]
[1733577070818,0.101846,4008.5,4008.1,0.07797115]
[1733577071066,0.7792,4008.7,4008.2,0.07797115]
[1733577071362,0.7792,4008.7,4007.9,0.998505]
[1733577071363,0.7792,4008.7,4008.3,0.07797115]
[1733577071523,0.101846,4008.6,4008.4,0.07797115]
[1733577071726,0.101846,4008.6,4008.5,0.07797115]
[1733577072177,0.96530518,4008.6,4008.5,0.07797115]
[1733577072475,0.96531118,4008.6,4008.5,0.07797304]
[1733577073343,0.101846,4008.6,4008.5,0.07797304]
[1733577073665,0.96555935,4008.6,4008.5,0.07797304]
[1733577073836,0.101846,4008.6,4008.5,0.07797304]
[1733577074026,1.0434521,4009.2,4008.5,1.15431798]
[1733577074226,0.86361592,4009.1,4008.7,1.74619]
[1733577074462,1.0434521,4009.3,4008.8,0.07797304]
[1733577074670,1.0434521,4009.3,4008.7,1.74619]
[1733577074671,4.0,4008.9,4008.7,1.74619]
[1733577074874,1.0434521,4009.3,4008.8,0.07795797]
[1733577075164,0.86377137,4009.2,4008.9,0.07795797]
[1733577075460,1.0434521,4009.3,4009.0,0.07795816]
[1733577075759,0.86399716,4009.2,4009.1,0.07795816]
[1733577077052,0.86415006,4009.2,4009.1,0.07795816]
[1733577077966,1.8670521,4009.5,4009.1,1.82397816]
[1733577078125,2.16063258,4009.4,4009.2,0.07795816]
[1733577078331,1.8670521,4009.5,4009.3,0.07795406]
[1733577078544,2.26242568,4009.4,4009.1,1.74602]
[1733577078740,0.86432365,4009.3,4009.1,1.74602]
[1733577078942,1.8670521,4009.5,4009.2,0.07795323]
[1733577079156,2.16081236,4009.4,4009.2,0.07795323]
[1733577079330,0.10161655,4009.4,4009.3,0.07795043]
[1733577079624,2.54224926,4009.9,4009.3,0.07795043]
[1733577079625,1.0434521,4009.7,4009.3,0.07795043]
[1733577079831,0.10161655,4009.4,4009.2,1.74596]
[1733577080144,1.0434521,4009.8,4009.3,0.07794542]
[1733577080372,2.50296209,4009.7,4009.4,1.82383542]
[1733577080683,0.86416334,4009.6,4009.5,0.07794542]
[1733577082167,0.86416334,4009.6,4009.4,1.74589]
[1733577082479,1.0434521,4009.8,4009.5,0.07794726]
[1733577082680,2.16013075,4009.7,4009.5,0.07794726]
[1733577082857,1.0434521,4009.8,4009.6,0.07794726]
[1733577083052,1.0434521,4009.8,4009.4,1.74589]
[1733577083053,2.16013113,4009.7,4009.4,1.74589]
[1733577083255,1.55884999,4009.8,4009.5,0.0779471]
[1733577083456,0.86401233,4009.7,4009.6,0.0779471]
[1733577083764,0.51539789,4009.8,4009.6,0.0779471]
[1733577084091,0.8136,4009.9,4009.7,0.0779471]
[1733577084290,1.8515521,4010.1,4009.8,0.0779471]
[1733577084465,4.0,4009.9,4009.0,1.90474494]
[1733577084669,4.0,4009.9,4009.2,1.74598]
[1733577084870,4.0,4009.9,4009.7,1.74574]
[1733577085184,4.0,4009.9,4009.8,1.82366176]
[1733577085380,0.86374383,4009.9,4009.8,1.74572]
[1733577085583,0.86374383,4009.9,4009.8,1.82366162]
[1733577086262,1.8515521,4010.1,4009.8,1.82366162]
[1733577086501,0.86364366,4010.0,4009.9,0.07794162]
[1733577086792,4.86364366,4010.0,4009.9,0.07794162]
[1733577087200,7.20252109,4010.0,4009.9,0.07794162]
[1733577087355,6.15906899,4010.0,4009.9,0.07794162]
[1733577087556,4.86364366,4010.0,4009.9,0.07794162]
[1733577088238,0.86364366,4010.0,4009.9,0.07794162]
[1733577088407,0.8081,4010.1,4009.9,0.07794162]
[1733577088606,1.0434521,4010.2,4010.0,0.07794162]
[1733577088807,2.34588527,4010.4,4009.4,0.821]
[1733577088808,0.86345865,4010.1,4009.5,1.07634494]
[1733577089041,0.7774,4010.4,4009.6,0.44226518]
[1733577089196,0.7774,4010.4,4010.1,1.74559]
[1733577089541,1.2947457,4010.6,4010.2,1.82344069]
[1733577089739,1.8208521,4010.7,4010.3,0.07794069]
[1733577089935,1.8208521,4010.7,4010.2,1.7455]
[1733577089936,4.0,4010.4,4010.2,1.7455]
[1733577090252,1.0434521,4010.7,4010.3,0.07793273]
[1733577090415,1.294492,4010.8,4010.5,1.7454]
[1733577090611,1.0434521,4010.9,4010.6,0.07793273]
[1733577090829,0.86292353,4010.8,4010.5,1.7454]
[1733577091145,1.9863409,4011.0,4010.6,0.07792868]
[1733577091327,1.9863409,4011.0,4010.5,1.7454]
[1733577091328,0.86291235,4010.9,4010.5,1.7454]
[1733577091647,1.9863409,4011.0,4010.6,0.07792772]
[1733577091648,0.86265797,4010.8,4010.6,0.07792772]
[1733577091800,2.69292258,4010.9,4010.1,0.7951]
[1733577092125,0.86266826,4010.8,4010.2,1.82346033]
[1733577092321,1.64922321,4010.9,4010.3,0.07793033]
[1733577092634,2.15619926,4010.8,4010.3,0.07793033]
[1733577092840,1.29374059,4010.8,4010.4,0.07793033]
[1733577093003,0.86247635,4010.7,4010.1,0.7951]
[1733577093199,2.93361974,4010.6,4010.2,0.07793361]
[1733577093403,3.19972547,4010.5,4009.5,1.74584]
[1733577093615,0.86248975,4010.4,4009.6,0.07794206]
[1733577093913,0.10209998,4010.4,4009.7,0.07794206]
[1733577094238,3.1145144,4010.6,4009.8,0.07794206]
[1733577094550,3.1145144,4010.6,4009.6,2.82214494]
[1733577094551,0.10209998,4010.3,4009.9,0.07794206]
[1733577094704,0.7774,4010.6,4010.0,0.07794206]
[1733577094906,0.7774,4010.6,4009.8,1.74572]
[1733577094907,0.10209998,4010.2,4010.1,0.07794206]
[1733577095448,3.11435856,4010.6,4009.9,0.7951]
[1733577095609,0.10209998,4010.2,4010.0,0.07794053]
[1733577095808,0.10209998,4010.2,4009.9,0.7951]
[1733577095809,3.11435856,4010.6,4009.9,0.7951]
[1733577096009,0.10277573,4010.1,4010.0,0.07794054]
[1733577096221,3.11432861,4010.6,4010.0,0.07794054]
[1733577096411,0.10277573,4010.1,4009.6,3.61724494]
[1733577096635,3.11432861,4010.6,4009.7,0.07794071]
[1733577096840,0.10277573,4010.0,4009.8,0.07794071]
[1733577097013,0.10277573,4010.0,4009.6,3.61724494]
[1733577097014,3.11432861,4010.6,4009.9,0.07794071]
[1733577097213,1.39120385,4010.5,4010.0,0.07794071]
[1733577097459,0.52894654,4010.5,4010.1,0.07794071]
[1733577097815,0.52894654,4010.5,4009.7,1.74574]
[1733577098015,4.85969861,4010.6,4009.8,0.07794095]
[1733577098254,0.86220984,4010.5,4009.9,0.07794095]
[1733577098411,3.90107838,4010.5,4009.9,0.07794095]
[1733577098610,1.8208521,4010.6,4010.0,0.07794095]
[1733577098849,0.86215914,4010.5,4010.1,0.0779414]
[1733577099053,1.65183181,4010.5,4009.6,0.7951]
[1733577099257,3.11409082,4010.6,4009.7,0.07794126]
[1733577099463,0.86215288,4010.5,4009.8,0.07794126]
[1733577099612,0.86215288,4010.5,4009.9,0.07794126]
[1733577099819,0.86215288,4010.5,4010.0,0.07794126]
[1733577100022,1.65010361,4010.7,4010.1,0.07794126]
[1733577100319,0.86210043,4010.6,4010.2,0.07794126]
[1733577100538,0.86210043,4010.6,4009.7,2.82208494]
[1733577100735,2.33652067,4010.7,4009.8,0.43965916]
[1733577100934,1.29306857,4010.8,4010.0,1.74563]
[1733577101163,1.7956521,4010.9,4010.1,0.07794067]
[1733577101164,3.08872067,4010.9,4010.1,0.07794067]
[1733577101362,0.86194432,4010.8,4010.2,0.07794067]
[1733577101524,0.86194432,4010.8,4010.3,0.07794067]
[1733577101724,0.86194432,4010.7,4010.4,0.07794067]
[1733577101920,4.0,4010.5,4010.0,2.82197494]
[1733577102265,4.0,4010.5,4010.0,3.21779428]
[1733577102564,0.7522,4010.9,4010.1,0.07793696]
[1733577102737,0.7522,4010.9,4010.2,0.07793696]
[1733577102935,0.7522,4010.9,4010.3,0.07793696]
[1733577103131,0.7522,4010.9,4010.4,0.07793696]
[1733577103458,0.7522,4010.9,4010.5,0.07793696]
[1733577103759,1.2089409,4011.0,4010.6,0.07793696]
[1733577103960,0.1654888,4011.0,4010.6,0.07793696]
[1733577104120,0.1654888,4011.0,4010.5,0.7809]
[1733577104121,0.1654888,4011.0,4010.7,0.07793696]
[1733577104322,0.1654888,4011.0,4010.8,0.07793696]
[1733577104656,0.1654888,4011.0,4010.9,0.07793696]
[1733577104856,4.1654888,4011.0,4010.9,0.07793696]
[1733577105165,4.1654888,4011.0,4010.9,1.1542819]
[1733577105464,0.1654888,4011.0,4010.9,1.55187158]
[1733577105764,0.1654888,4011.0,4010.9,4.07801158]
[1733577106928,0.1654888,4011.0,4010.9,7.07801158]
[1733577107745,0.1654888,4011.0,4010.9,6.00166664]
[1733577108072,0.1654888,4011.0,4010.9,7.07801158]
[1733577112152,0.1654888,4011.0,4010.9,4.07801158]
[1733577112466,0.1654888,4011.0,4010.9,4.00007462]
[1733577112651,0.1654888,4011.0,4010.9,4.07797747]
[1733577112865,0.1654888,4011.0,4010.9,2.33273747]
[1733577113168,0.1654888,4011.0,4010.9,1.93514779]
[1733577113665,0.1654888,4011.0,4010.9,1.15424779]
[1733577114042,0.26970469,4011.0,4010.9,1.15424779]
[1733577114585,0.1654888,4011.0,4010.9,0.07790285]
[1733577117646,0.26948256,4011.0,4010.9,0.07790285]
[1733577118446,0.26948256,4011.0,4010.3,0.8195]
[1733577118447,1.08248256,4011.0,4010.3,0.8195]
[1733577118863,1.08248256,4011.0,4010.4,0.07792593]
[1733577119057,1.08248256,4011.0,4010.5,0.07792593]
[1733577119058,1.36524182,4011.0,4010.5,0.07792593]
[1733577119460,1.36524182,4011.0,4010.6,0.07792593]
[1733577119666,1.36524182,4011.0,4010.7,0.07792593]
[1733577119871,1.36524182,4011.0,4010.8,0.07792593]
[1733577120087,1.08248256,4011.0,4010.9,0.07792593]
[1733577120409,1.08248256,4011.0,4010.2,0.07792593]
[1733577120686,1.08248256,4011.0,4010.3,0.07792593]
[1733577120844,1.08248256,4011.0,4010.4,0.07792593]
[1733577121047,1.08248256,4011.0,4010.5,0.07792593]
[1733577121484,1.08248256,4011.0,4010.6,0.07792593]
[1733577121720,0.26948256,4011.0,4010.8,1.74528]
[1733577121993,0.1654888,4011.0,4010.9,0.34219652]
[1733577122288,0.1654888,4011.0,4010.9,0.07792593]
[1733577122791,0.26906716,4011.0,4010.9,0.07792593]
[1733577123089,1.03536716,4011.0,4010.9,0.07792593]
[1733577124491,0.26906716,4011.0,4010.9,0.07792593]
[1733577125357,0.26906716,4011.0,4010.9,0.26025352]
[1733577126216,0.26906716,4011.0,4010.9,1.03355352]
[1733577126893,0.1654888,4011.0,4010.9,1.03355352]
[1733577127143,0.1654888,4011.0,4010.9,0.26025352]
[1733577127322,0.1654888,4011.0,4010.9,0.07792593]
[1733577129214,0.26906716,4011.0,4010.9,0.07792593]
[1733577130142,0.9317888,4011.0,4010.9,0.07792593]
[1733577130296,1.03536716,4011.0,4010.9,0.07792593]
[1733577130503,1.31342088,4011.0,4010.9,0.07792593]
[1733577131044,1.03536716,4011.0,4010.9,0.07792593]
[1733577133840,1.03536716,4011.0,4010.4,0.7733]
[1733577134041,1.03536716,4011.0,4010.5,0.0779262]
[1733577134241,0.26906716,4011.0,4010.6,0.0779262]
[1733577134539,0.26906716,4011.0,4010.7,0.0779262]
[1733577134743,0.26906716,4011.0,4010.8,0.0779262]
[1733577134946,0.26906716,4011.0,4010.9,0.0779262]
[1733577137158,0.26906716,4011.0,4010.9,0.07791955]
[1733577139403,1.04076716,4011.0,4010.9,0.07791955]
[1733577140860,0.26906716,4011.0,4010.9,0.07791955]
[1733577143999,3.36757776,4011.0,4010.9,0.07791955]
[1733577144355,4.93606303,4011.0,4010.9,0.07791955]
[1733577144706,0.8102,4010.9,4009.4,1.74586]
[1733577145000,0.8102,4010.5,4009.5,0.07793716]
[1733577145197,0.8102,4010.5,4009.6,0.07793716]
[1733577145198,0.86282581,4010.4,4009.6,0.07793716]
[1733577145503,0.10343643,4010.3,4009.7,0.07793716]
[1733577145651,0.10343643,4010.3,4009.8,0.07793716]
[1733577145855,1.29468467,4010.4,4009.9,0.07793716]
[1733577146055,0.10343643,4010.2,4010.0,0.07793716]
[1733577146255,1.29468745,4010.4,4010.1,0.07793807]
[1733577146486,0.64597172,4010.4,4010.1,0.07793807]
[1733577146692,0.64597172,4010.4,4010.2,0.07793807]
[1733577146693,2.15793372,4010.3,4010.2,0.07793807]
[1733577147096,2.15793372,4010.3,4010.2,0.0779421]
[1733577147283,3.20168961,4010.3,4010.2,0.0779421]
[1733577147461,2.15793372,4010.3,4010.2,0.0779421]
[1733577147662,0.86317349,4010.3,4010.2,0.0779421]
[1733577147866,1.04375589,4010.6,4010.2,0.0779421]
[1733577148212,1.04375589,4010.6,4010.0,2.5707]
[1733577148213,0.86304018,4010.5,4010.3,0.0779421]
[1733577148362,1.04375589,4010.7,4010.4,0.0779421]
[1733577148562,2.15753465,4010.6,4010.5,0.0779421]
[1733577149096,0.86301386,4010.6,4010.5,0.0779421]
[1733577149265,1.04375589,4010.9,4010.5,0.0779421]
[1733577149468,0.1654888,4011.0,4010.6,0.0779421]
[1733577149469,0.8629987,4010.8,4010.6,0.0779421]
[1733577149777,1.04375589,4010.9,4010.7,0.0779421]
[1733577149980,0.8629882,4010.8,4010.4,1.74546]
[1733577150184,1.04375589,4010.9,4010.5,0.0779297]
[1733577150368,0.86296235,4010.8,4010.6,0.0779297]
[1733577150568,1.04375589,4010.9,4010.7,0.0779297]
[1733577150807,0.8629857,4010.8,4010.4,1.74546]
[1733577151103,1.20924469,4011.0,4010.5,0.0779295]
[1733577151310,0.1654888,4011.0,4010.6,0.0779295]
[1733577151468,0.1654888,4011.0,4010.7,0.9030295]
[1733577151669,0.1654888,4011.0,4010.8,0.0779295]
[1733577152085,0.1654888,4011.0,4010.9,0.0779295]
[1733577153485,0.26887824,4011.0,4010.9,1.8231695]
[1733577153684,0.26887824,4011.0,4010.9,0.0779295]
[1733577154594,0.26887824,4011.0,4010.9,1.8231695]
[1733577155487,0.26887824,4011.0,4010.9,0.0779295]
[1733577156195,0.26887824,4011.0,4010.9,1.8231695]
[1733577156433,0.26887824,4011.0,4010.9,2.26253245]
[1733577157292,0.26887824,4011.0,4010.9,2.2625167]
[1733577159001,0.26887824,4011.0,4010.9,0.5172767]
[1733577159195,0.26887824,4011.0,4010.9,0.07791375]
[1733577160224,0.26887824,4011.0,4010.9,1.82315375]
[1733577160408,0.26887824,4011.0,4010.9,0.07791375]
[1733577160613,2.42861152,4011.0,4010.9,0.07791375]
[1733577160911,2.42865697,4011.0,4010.9,0.07791375]
[1733577162945,2.42871995,4011.0,4010.9,0.07791375]
[1733577163327,2.42871995,4011.0,4010.9,1.07580475]
[1733577163328,3.47247584,4011.0,4010.9,1.07580475]
[1733577163643,3.47247584,4011.0,4010.9,1.07581323]
[1733577163845,2.42871995,4011.0,4010.9,1.07581323]
[1733577164430,3.25301995,4011.0,4010.9,1.07581323]
[1733577164637,6.62821681,4011.0,4010.9,0.07792223]
[1733577164836,4.99821995,4011.0,4010.9,0.07792223]
[1733577165034,4.98108207,4011.0,4010.9,0.07792223]
[1733577165564,4.82072668,4011.0,4010.9,0.07792223]
[1733577165756,4.29821334,4011.0,4010.9,0.07792223]
[1733577166505,3.25329501,4011.0,4010.9,0.07792223]
[1733577167335,4.82072668,4011.0,4010.9,0.07792223]
[1733577167825,3.25329501,4011.0,4010.9,0.07792223]
[1733577168426,4.82072668,4011.0,4010.9,0.07792223]
[1733577168623,3.25329501,4011.0,4010.9,0.07792223]
[1733577168859,4.82072668,4011.0,4010.9,0.07792223]
[1733577169029,5.68474383,4011.0,4010.9,0.07792223]
[1733577169920,4.11731216,4011.0,4010.9,0.07792223]
[1733577170349,5.68475294,4011.0,4010.9,0.07792223]
[1733577170719,5.68475294,4011.0,4010.9,0.07792321]
[1733577171255,4.11732127,4011.0,4010.9,0.07792321]
[1733577171417,3.25330412,4011.0,4010.9,0.07792321]
[1733577174544,4.82073579,4011.0,4010.9,0.07792321]
[1733577174853,4.98153948,4011.0,4010.9,0.07792321]
[1733577175450,4.82094575,4011.0,4010.9,0.07792321]
[1733577176960,4.82094575,4011.0,4010.9,0.07792278]
[1733577177725,2.42922172,4011.0,4010.9,0.07792278]
[1733577178820,3.99686335,4011.0,4010.9,0.07792278]
[1733577180450,4.85834878,4011.0,4010.9,0.07792278]
[1733577180743,5.8174241,4011.0,4010.9,0.07792278]
[1733577181362,6.3674241,4011.0,4010.9,0.07792278]
[1733577181572,8.1126241,4011.0,4010.9,0.07792278]
[1733577181725,8.1126241,4011.0,4009.7,1.84911049]
[1733577181726,0.7984,4010.8,4009.7,3.59487049]
[1733577182062,1.04511681,4010.4,4009.9,0.998112]
[1733577182222,0.86413739,4010.3,4010.0,0.07793107]
[1733577182424,1.04511681,4010.5,4010.1,0.07793107]
[1733577182623,1.56767521,4010.3,4010.2,0.07793107]
[1733577182853,2.16033718,4010.3,4009.7,0.998162]
[1733577183160,1.56767521,4010.3,4010.2,0.0779376]
[1733577183362,4.34639878,4010.3,4009.7,0.998162]
[1733577183534,1.045018,4010.1,4009.7,0.998162]
[1733577183737,0.86409952,4010.0,4009.8,0.07793922]
[1733577183944,1.045018,4010.1,4009.9,0.07793922]
[1733577184130,0.86411294,4010.0,4009.7,0.998162]
[1733577184460,1.045018,4010.1,4009.7,0.998162]
[1733577184631,0.8639895,4010.0,4009.7,0.998162]
[1733577184832,0.7536,4009.8,4009.0,1.07431049]
[1733577185036,0.86403148,4009.7,4009.2,1.74596]
[1733577185363,0.7536,4009.8,4009.2,1.74596]
[1733577185364,1.798618,4009.8,4009.4,0.99824]
[1733577185608,0.86383156,4009.7,4009.4,0.99824]
[1733577185728,1.045018,4009.9,4009.6,1.07431049]
[1733577186057,1.045018,4009.9,4009.5,0.7936]
[1733577186058,1.045018,4010.1,4009.5,1.74582]
[1733577186259,3.20416974,4010.0,4009.4,0.99824]
[1733577186433,1.045018,4009.8,4009.2,1.74597]
[1733577186634,2.15923378,4009.7,4009.2,1.74597]
[1733577186841,0.8637197,4009.6,4009.4,1.74589]
[1733577187069,1.798618,4009.9,4009.4,1.74589]
[1733577187360,1.798618,4009.9,4009.0,0.998253]
[1733577187361,2.1587797,4009.8,4009.2,1.74597]
[1733577187569,1.045018,4009.9,4009.3,0.7936]
[1733577187731,1.045018,4010.0,4009.5,1.74583]
[1733577188060,0.86348581,4009.9,4009.5,1.74583]
[1733577188271,1.045018,4010.1,4009.7,1.74575]
[1733577188568,0.86336991,4010.0,4009.7,1.74575]
[1733577188752,1.045018,4010.1,4009.7,1.74575]
[1733577189073,1.045018,4010.4,4009.8,0.7936]
[1733577189374,1.045018,4010.6,4009.8,0.7936]
[1733577189576,0.86323618,4010.5,4009.8,0.7936]
[1733577189738,1.045018,4010.7,4010.1,1.74556]
[1733577189943,3.20303376,4010.6,4010.1,1.74556]
[1733577190273,3.20303376,4010.6,4009.9,1.74567]
[1733577190274,2.15808317,4010.5,4009.9,1.74567]
[1733577190478,2.15808379,4010.4,4009.9,1.74567]
[1733577190684,0.8632063,4010.3,4009.9,1.74567]
[1733577190977,1.045018,4010.5,4009.9,1.74567]
[1733577191139,3.20316103,4010.4,4009.9,1.74567]
[1733577191341,0.86325721,4010.3,4009.9,1.74567]
[1733577191562,1.045018,4010.5,4009.9,1.74567]
[1733577191740,0.86324743,4010.4,4010.1,1.74557]
[1733577191940,1.045018,4010.5,4010.1,1.74557]
[1733577192179,0.86322244,4010.4,4010.1,1.74557]
[1733577192386,1.045018,4010.6,4010.1,1.74557]
[1733577192547,2.15807763,4010.5,4010.1,1.74557]
[1733577192740,0.86323105,4010.4,4010.1,1.74557]
[1733577192945,1.045018,4010.6,4010.1,1.74557]
[1733577193145,2.15806975,4010.5,4010.1,1.74557]
[1733577193343,0.8632279,4010.4,4010.1,1.74557]
[1733577193545,1.045018,4010.5,4010.1,1.74557]
[1733577193742,0.86327823,4010.4,4010.1,1.74557]
[1733577193977,1.56767521,4010.7,4010.1,1.74557]
[1733577193978,1.045018,4010.6,4010.1,1.74557]
[1733577194150,2.15818433,4010.5,4010.1,1.74557]
[1733577194352,0.86327373,4010.4,4010.2,1.74553]
[1733577194568,1.045018,4010.7,4010.2,1.74553]
[1733577194757,3.20315677,4010.6,4010.2,1.74552]
[1733577195087,0.86325551,4010.5,4010.2,1.74552]
[1733577195244,1.045018,4010.6,4009.8,0.7936]
[1733577195445,2.32127521,4010.8,4009.8,0.7936]
[1733577195446,1.045018,4010.7,4010.3,1.74548]
[1733577195669,0.8632323,4010.6,4010.3,1.74548]
[1733577195980,1.045018,4010.8,4009.9,0.253932]
[1733577196185,0.86319765,4010.7,4010.5,1.7454]
[1733577196343,1.045018,4010.9,4010.5,1.7454]
[1733577196543,0.86317114,4010.8,4010.5,1.7454]
[1733577196740,1.045018,4010.9,4010.5,1.7454]
[1733577196955,2.15793938,4010.8,4010.5,1.7454]
[1733577197157,0.86317575,4010.7,4010.5,1.7454]
[1733577197397,1.045018,4010.9,4010.5,1.7454]
[1733577197700,2.15801603,4010.8,4010.5,1.7454]
[1733577197875,1.045018,4010.9,4010.5,1.7454]
[1733577198194,2.15794581,4010.8,4010.5,1.7454]
[1733577198359,1.045018,4010.9,4010.5,1.7454]
[1733577198557,0.09898161,4010.7,4010.3,1.7455]
[1733577198764,0.86326572,4010.6,4010.3,1.7455]
[1733577198998,0.09898161,4010.6,4010.3,1.7455]
[1733577199404,1.045018,4010.8,4010.3,1.7455]
[1733577199716,0.09898161,4010.5,4010.3,1.7455]
[1733577199916,1.045018,4010.8,4010.3,1.7455]
[1733577200197,0.09898161,4010.4,4010.1,1.74558]
[1733577200402,0.7972,4010.6,4010.1,1.74558]
[1733577200654,0.09898161,4010.3,4010.1,1.74558]
[1733577200761,1.842218,4010.6,4009.8,0.7562]
[1733577201097,1.842218,4010.6,4009.8,2.50188]
[1733577201098,0.09894741,4010.2,4009.8,2.50188]
[1733577201271,1.045018,4010.4,4009.8,2.50188]
[1733577201460,0.96227624,4010.3,4009.8,2.50188]
[1733577201680,0.09894741,4010.3,4009.8,1.74568]
[1733577202963,1.045018,4010.5,4009.8,1.74568]
[1733577203158,0.09894741,4010.2,4009.4,2.50206]
[1733577203362,1.045018,4010.5,4009.9,1.74565]
[1733577203596,0.09894741,4010.1,4009.9,1.74565]
[1733577203785,1.045018,4010.5,4009.9,1.74565]
[1733577203985,0.09894741,4010.0,4009.9,1.74565]
[1733577204163,1.842218,4010.6,4010.1,1.74559]
[1733577204359,2.15857018,4010.5,4010.1,1.74559]
[1733577204616,1.842218,4010.6,4010.1,1.74559]
[1733577204823,0.86348557,4010.5,4010.0,0.7521]
[1733577205107,1.045018,4010.8,4010.4,1.74545]
[1733577205280,0.86347124,4010.7,4010.4,1.74545]
[1733577205604,0.86347124,4010.7,4010.0,0.7521]
[1733577205605,0.863551,4010.6,4010.5,1.74541]
[1733577206896,1.045018,4010.8,4010.5,1.74541]
[1733577207106,2.15919116,4010.7,4010.5,1.74541]
[1733577207305,0.86367646,4010.6,4010.5,1.74541]
[1733577208730,0.8637737,4010.6,4010.5,1.74541]
[1733577208939,1.045018,4010.9,4010.6,1.74533]
[1733577209229,2.15935592,4010.8,4010.6,1.74533]
[1733577209411,1.045018,4010.9,4010.7,1.74533]
[1733577209591,1.2105068,4011.0,4010.7,1.74533]
[1733577209793,2.15936398,4010.9,4010.7,1.74533]
[1733577209989,0.863754,4010.8,4010.7,1.74533]
[1733577210846,1.2105068,4011.0,4010.7,1.74533]
[1733577211011,2.15941808,4010.9,4010.7,1.74533]
[1733577211207,1.2105068,4011.0,4010.7,1.74533]
[1733577211414,2.15938731,4010.9,4010.7,1.74533]
[1733577211611,0.86375492,4010.8,4010.7,1.74533]
[1733577211852,0.86375594,4010.8,4010.7,1.74533]
[1733577213529,0.96278029,4010.8,4010.7,1.74533]
[1733577214140,0.09902435,4010.8,4010.7,1.74533]
[1733577214503,0.1654888,4011.0,4010.1,1.07429759]
[1733577214698,0.1654888,4011.0,4010.8,1.74526]